fUSD/lending_fUSD_20260616
["ID","MTS","AMOUNT","RATE_DAILY","PERIOD"]
[425218396,1781617755000,-175.87,7.502e-05,2]
[425218395,1781617755000,-92.95459729,7.502e-05,2]
[425218394,1781617755000,-175.87,7.502e-05,2]
[425218393,1781617755000,-157.47,7.502e-05,2]
[425218392,1781617755000,-166.66,7.502e-05,2]
[425218401,1781617794000,4774.25505867,0.00030037,120]
[425218405,1781617831000,-500.0,7.502e-05,2]
[425218409,1781617831000,-250.0,7.503e-05,2]
[425218410,1781617831000,-22.54006956,7.504e-05,2]
[425218404,1781617831000,-131.07474522,7.502e-05,2]
[425218407,1781617831000,-500.0,7.502e-05,2]
[425218406,1781617831000,-500.0,7.502e-05,2]
[425218408,1781617831000,-500.0,7.502e-05,2]
[425218427,1781617833000,-226.79,8.039e-05,2]
[425218429,1781617833000,-544.93253031,8.219e-05,2]
[425218430,1781617833000,-500.0,8.219e-05,2]
[425218426,1781617833000,-163.78,7.923e-05,2]
[425218428,1781617833000,-500.0,8.219e-05,2]
[425218423,1781617833000,-352.67,7.754e-05,2]
[425218424,1781617833000,-151.0,7.768e-05,2]
[425218432,1781617833000,-500.0,8.219e-05,2]
[425218422,1781617833000,-246.0,7.654e-05,2]
[425218420,1781617833000,-216.13448155,7.509e-05,2]
[425218419,1781617833000,-164.674325,7.504e-05,2]
[425218421,1781617833000,-150.0,7.579e-05,2]
[425218418,1781617833000,-5071.78906894,7.504e-05,2]
[425218417,1781617833000,-443.65147059,7.504e-05,2]
[425218425,1781617833000,-151.0,7.856e-05,2]
[425218431,1781617833000,-500.0,8.219e-05,2]
[425218440,1781617833000,-3594.56294289,8.253e-05,2]
[425218435,1781617833000,-193.51482873,8.253e-05,2]
[425218446,1781617833000,-895.41,8.307e-05,2]
[425218449,1781617833000,-1237.08734021,8.307e-05,2]
[425218448,1781617833000,-905.03509784,8.307e-05,2]
[425218445,1781617833000,-951.59844034,8.307e-05,2]
[425218447,1781617833000,-3955.94026185,8.307e-05,2]
[425218444,1781617833000,-3262.7649108,8.307e-05,2]
[425218442,1781617833000,-300.0,8.255e-05,2]
[425218433,1781617833000,-1600.83,8.219e-05,2]
[425218438,1781617833000,-500.0,8.253e-05,2]
[425218441,1781617833000,-250.0,8.254e-05,2]
[425218443,1781617833000,-170935.96266104,8.307e-05,2]
[425218434,1781617833000,-1896.68,8.219e-05,2]
[425218437,1781617833000,-300.0,8.253e-05,2]
[425218436,1781617833000,-250.0,8.253e-05,2]
[425218439,1781617833000,-150.0,8.253e-05,2]
[425218450,1781617839000,-3196.0,8.307e-05,2]
[425218452,1781617839000,-859.64866547,8.307e-05,2]
[425218455,1781617839000,-1459.0185005,8.406e-05,2]
[425218454,1781617839000,-271.0,8.371e-05,2]
[425218453,1781617839000,-2731.05007034,8.307e-05,2]
[425218457,1781617839000,-446.26987052,8.406e-05,2]
[425218458,1781617839000,-133.37462898,8.406e-05,2]
[425218461,1781617839000,-172.597,8.406e-05,2]
[425218475,1781617839000,-297.02334617,8.494e-05,2]
[425218451,1781617839000,-330.13345211,8.307e-05,2]
[425218480,1781617839000,-85.97665383,8.494e-05,2]
[425218462,1781617839000,-588.95474348,8.468e-05,2]
[425218484,1781617839000,-151.0,8.544e-05,2]
[425218466,1781617839000,-545.01304499,8.47e-05,2]
[425218472,1781617839000,-1332.77417179,8.47e-05,2]
[425218486,1781617839000,-151.0,8.547e-05,2]
[425218465,1781617839000,-3813.87730825,8.47e-05,2]
[425218482,1781617839000,-383.0,8.542e-05,2]
[425218464,1781617839000,-150.0,8.468e-05,2]
[425218469,1781617839000,-11.92245568,8.47e-05,2]
[425218525,1781617840000,-151.0,8.739e-05,2]
[425218553,1781617840000,-151.0,8.92e-05,2]
[425218523,1781617840000,-151.0,8.739e-05,2]
[425218531,1781617840000,-211763.7346392,8.742e-05,2]
[425218534,1781617840000,-151.0,8.742e-05,2]
[425218538,1781617840000,-151.0,8.742e-05,2]
[425218540,1781617840000,-151.0,8.742e-05,2]
[425218536,1781617840000,-151.0,8.742e-05,2]
[425218551,1781617840000,-151.0,8.92e-05,2]
[425218542,1781617840000,-155.634719,8.742e-05,2]
[425218549,1781617840000,-151.0,8.744e-05,2]
[425218547,1781617840000,-151.0,8.744e-05,2]
[425218555,1781617840000,-151.0,8.92e-05,2]
[425218559,1781617840000,-845.53891628,8.942e-05,2]
[425218557,1781617840000,-936.52,8.923e-05,2]
[425218563,1781617840000,-36737.19382335,9.04e-05,2]
[425218561,1781617840000,-164.92,9.03e-05,2]
[425218567,1781617840000,-500.0,9.151e-05,2]
[425218569,1781617840000,-383.0,9.167e-05,2]
[425218571,1781617840000,-383.0,9.181e-05,2]
[425218529,1781617840000,-369.649788,8.741e-05,2]
[425218544,1781617840000,-151.0,8.744e-05,2]
[425218527,1781617840000,-151.0,8.739e-05,2]
[425218501,1781617840000,-151.0,8.577e-05,2]
[425218521,1781617840000,-151.0,8.739e-05,2]
[425218489,1781617840000,-3759.8,8.547e-05,2]
[425218488,1781617840000,-1663.68495936,8.547e-05,2]
[425218490,1781617840000,-2184.34232518,8.547e-05,2]
[425218505,1781617840000,-670.95,8.598e-05,2]
[425218493,1781617840000,-15658.91485266,8.547e-05,2]
[425218494,1781617840000,-6812.8641618,8.547e-05,2]
[425218495,1781617840000,-3648.6370723,8.547e-05,2]
[425218497,1781617840000,-78237.1623963,8.547e-05,2]
[425218496,1781617840000,-5072.5402574,8.547e-05,2]
[425218499,1781617840000,-383.0,8.566e-05,2]
[425218522,1781617840000,-151.0,8.739e-05,2]
[425218573,1781617840000,-383.0,9.185e-05,2]
[425218507,1781617840000,-500.0,8.603e-05,2]
[425218509,1781617840000,-246.08,8.649e-05,2]
[425218510,1781617840000,-116586.31388523,8.66e-05,2]
[425218515,1781617840000,-151.0,8.736e-05,2]
[425218513,1781617840000,-13569.13765093,8.73e-05,2]
[425218511,1781617840000,-151.0,8.66e-05,2]
[425218517,1781617840000,-151.0,8.739e-05,2]
[425218518,1781617840000,-5994.5526816,8.739e-05,2]
[425218519,1781617840000,-73230.1109521,8.739e-05,2]
[425218520,1781617840000,-1436.9332652,8.739e-05,2]
[425218503,1781617840000,-151.0,8.59e-05,2]
[425218581,1781617840000,-8330.15869107,9.239e-05,2]
[425218577,1781617840000,-383.0,9.19e-05,2]
[425218575,1781617840000,-262.0,9.185e-05,2]
[425218637,1781617840000,-151.0,9.387e-05,2]
[425218642,1781617840000,-185.13,9.388e-05,2]
[425218643,1781617840000,-151.0,9.396e-05,2]
[425218639,1781617840000,-151.0,9.387e-05,2]
[425218648,1781617840000,-160.0,9.473e-05,2]
[425218649,1781617840000,-670.95,9.553e-05,2]
[425218635,1781617840000,-383.0,9.385e-05,2]
[425218652,1781617840000,-151.0,9.589e-05,2]
[425218565,1781617840000,-255.0,9.078e-05,2]
[425218646,1781617840000,-151.0,9.412e-05,2]
[425218633,1781617840000,-383.0,9.376e-05,2]
[425218654,1781617840000,-200.0,9.755e-05,2]
[425218658,1781617840000,-217.466,9.755e-05,2]
[425218657,1781617840000,-231.0,9.755e-05,2]
[425218656,1781617840000,-220.0,9.755e-05,2]
[425218659,1781617840000,-150.0,9.755e-05,2]
[425218664,1781617840000,-1232.395,9.769e-05,2]
[425218661,1781617840000,-151.0,9.768e-05,2]
[425218660,1781617840000,-190.0,9.755e-05,2]
[425218665,1781617840000,-1029.448437,9.8e-05,2]
[425218663,1781617840000,-383.0,9.769e-05,2]
[425218662,1781617840000,-1275.0,9.769e-05,2]
[425218655,1781617840000,-150.0,9.755e-05,2]
[425218631,1781617840000,-151.0,9.368e-05,2]
[425218653,1781617840000,-164.92,9.718e-05,2]
[425218622,1781617840000,-383.0,9.333e-05,2]
[425218624,1781617840000,-383.0,9.343e-05,2]
[425218584,1781617840000,-1896.68,9.247e-05,2]
[425218580,1781617840000,-163.78,9.231e-05,2]
[425218589,1781617840000,-150.0,9.252e-05,7]
[425218587,1781617840000,-150.0,9.252e-05,7]
[425218591,1781617840000,-150.0,9.252e-05,7]
[425218595,1781617840000,-150.0,9.252e-05,7]
[425218606,1781617840000,-150.0,9.252e-05,7]
[425218599,1781617840000,-150.0,9.252e-05,7]
[425218597,1781617840000,-150.0,9.252e-05,7]
[425218593,1781617840000,-150.0,9.252e-05,7]
[425218608,1781617840000,-237.51787565,9.252e-05,7]
[425218603,1781617840000,-150.0,9.252e-05,7]
[425218620,1781617840000,-162.63,9.323e-05,2]
[425218627,1781617840000,-383.0,9.346e-05,2]
[425218616,1781617840000,-383.0,9.317e-05,2]
[425218618,1781617840000,-759.91640474,9.323e-05,2]
[425218629,1781617840000,-383.0,9.366e-05,2]
[425218612,1781617840000,-383.0,9.261e-05,2]
[425218610,1781617840000,-715.90820305,9.252e-05,7]
[425218601,1781617840000,-150.0,9.252e-05,7]
[425218614,1781617840000,-383.0,9.261e-05,2]
[425218679,1781617841000,-440.9229438,0.0001,2]
[425218682,1781617841000,-151.252358,0.0001,2]
[425218683,1781617841000,-1072.67188178,0.0001,2]
[425218686,1781617841000,-293.443,0.0001,2]
[425218685,1781617841000,-293.44301,0.0001,2]
[425218684,1781617841000,-293.443,0.0001,2]
[425218680,1781617841000,-300.0,0.0001,2]
[425218681,1781617841000,-163.7,0.0001,2]
[425218678,1781617841000,-183.7099792,0.0001,2]
[425218677,1781617841000,-151.0,0.0001,2]
[425218687,1781617841000,-293.443,0.0001,2]
[425218670,1781617841000,-220.128954,9.879e-05,2]
[425218666,1781617841000,-585.500684,9.8e-05,2]
[425218669,1781617841000,-151.0,9.879e-05,2]
[425218667,1781617841000,-500.0,9.863e-05,2]
[425218674,1781617841000,-340.48,9.969e-05,2]
[425218671,1781617841000,-78227.83,9.879e-05,2]
[425218668,1781617841000,-151.0,9.879e-05,2]
[425218676,1781617841000,-18674.26849412,0.0001,2]
[425218673,1781617841000,-936.52,9.914e-05,2]
[425218672,1781617841000,-1270.31,9.879e-05,2]
[425218690,1781617841000,-239.0,0.0001,2]
[425218675,1781617841000,-433.0,9.986e-05,2]
[425218695,1781617841000,-1000.0,0.0001,2]
[425218689,1781617841000,-293.44301,0.0001,2]
[425218711,1781617841000,-758.86937963,0.00010278,2]
[425218710,1781617841000,-270.71244818,0.00010278,2]
[425218704,1781617841000,-1929.961179,0.00010221,2]
[425218708,1781617841000,-302.62,0.0001026,2]
[425218712,1781617841000,-1271.27,0.00010278,2]
[425218709,1781617841000,-1896.68,0.00010274,2]
[425218706,1781617841000,-573.42,0.00010233,2]
[425218705,1781617841000,-185.09,0.00010225,2]
[425218702,1781617841000,-263.26534165,0.000101,2]
[425218703,1781617841000,-152.11,0.000101,2]
[425218707,1781617841000,-185.13,0.00010233,2]
[425218701,1781617841000,-302.62,0.0001009,2]
[425218700,1781617841000,-3880.56,0.00010027,2]
[425218699,1781617841000,-1000.0,0.0001,2]
[425218692,1781617841000,-240.1405562,0.0001,2]
[425218688,1781617841000,-293.44301,0.0001,2]
[425218697,1781617841000,-1000.0,0.0001,2]
[425218696,1781617841000,-1000.0,0.0001,2]
[425218691,1781617841000,-239.0,0.0001,2]
[425218694,1781617841000,-1000.0,0.0001,2]
[425218698,1781617841000,-1000.0,0.0001,2]
[425218693,1781617841000,-1000.0,0.0001,2]
[425218722,1781617842000,-201.33856245,0.0001033,2]
[425218721,1781617842000,-341.94,0.00010303,2]
[425218720,1781617842000,-1579.70817219,0.00010278,2]
[425218739,1781617843000,-302.62,0.00010703,2]
[425218738,1781617843000,-302.62,0.00010679,2]
[425218732,1781617843000,-302.62,0.00010571,2]
[425218733,1781617843000,-302.62,0.000106,2]
[425218727,1781617843000,-302.62,0.0001047,2]
[425218729,1781617843000,-670.95,0.00010508,2]
[425218725,1781617843000,-195.88765177,0.0001043,2]
[425218726,1781617843000,-106.73234823,0.0001043,2]
[425218728,1781617843000,-302.62,0.00010507,2]
[425218724,1781617843000,-302.62,0.00010385,2]
[425218723,1781617843000,-101.28143755,0.0001033,2]
[425218734,1781617843000,-302.62,0.00010628,2]
[425218730,1781617843000,-3880.56,0.00010529,2]
[425218735,1781617843000,-106.37889561,0.00010654,2]
[425218731,1781617843000,-302.62,0.0001054,2]
[425218737,1781617843000,-251.82598024,0.00010671,2]
[425218736,1781617843000,-196.24110439,0.00010654,2]
[425218751,1781617843000,-600.0,0.000109,3]
[425218750,1781617843000,-302.62,0.00010888,2]
[425218746,1781617843000,-302.62,0.00010812,2]
[425218745,1781617843000,-302.62,0.00010791,2]
[425218748,1781617843000,-302.62,0.00010851,2]
[425218749,1781617843000,-302.62,0.00010869,2]
[425218744,1781617843000,-3880.56,0.00010779,2]
[425218752,1781617843000,-180.92061424,0.000109,2]
[425218743,1781617843000,-302.62,0.0001077,2]
[425218740,1781617843000,-340.48,0.00010711,2]
[425218742,1781617843000,-302.62,0.00010749,2]
[425218741,1781617843000,-302.62,0.00010726,2]
[425218747,1781617843000,-302.62,0.00010831,2]
[425218756,1781617845000,-302.62,0.00010906,2]
[425218753,1781617845000,-2513.13115754,0.000109,2]
[425218755,1781617845000,-2694.05177171,0.000109,2]
[425218758,1781617845000,-302.62,0.00010923,2]
[425218759,1781617845000,-341.94,0.0001093,2]
[425218760,1781617845000,-707.12979012,0.00010937,2]
[425218754,1781617845000,-2694.05177171,0.000109,2]
[425218762,1781617845000,-53.04354475,0.00010957,2]
[425218763,1781617845000,-249.57645525,0.00010957,2]
[425218764,1781617845000,-500.0,0.00010958,2]
[425218761,1781617845000,-302.62,0.0001094,2]
[425218767,1781617845000,-290.69803744,0.00010958,5]
[425218766,1781617845000,-500.0,0.00010958,4]
[425218765,1781617845000,-500.0,0.00010958,3]
[425218757,1781617845000,-936.52,0.00010906,2]
[425218768,1781617846000,-348.00732758,9.478e-05,2]
[425218769,1781617847000,-319.24,9.478e-05,2]
[425218826,1781617889000,250.59,0.0003,120]
[425218828,1781618035000,198.99,0.0003,120]
[425218830,1781618143000,-216.13448155,7.508e-05,2]
[425218832,1781618143000,-150.0,7.855e-05,2]
[425218829,1781618143000,-187.3,7.384e-05,2]
[425218833,1781618143000,-150.0,8.205e-05,2]
[425218834,1781618143000,-9136.56551845,8.207e-05,2]
[425218831,1781618143000,-160.0,7.508e-05,2]
[425218835,1781618342000,2000.0,0.0003013,120]
[425218836,1781618349000,2000.0,0.0003013,120]
[425218837,1781618357000,2000.0,0.0003013,120]
[425218838,1781618375000,2012.7242587,0.0003013,120]
[425218848,1781618500000,-500.0,8.204e-05,2]
[425218847,1781618500000,-500.0,8.204e-05,2]
[425218846,1781618500000,-500.0,8.204e-05,2]
[425218849,1781618500000,-500.0,8.204e-05,2]
[425218850,1781618500000,-500.0,8.204e-05,2]
[425218852,1781618500000,-500.0,8.204e-05,2]
[425218851,1781618500000,-500.0,8.204e-05,2]
[425218853,1781618500000,-500.0,8.204e-05,2]
[425218854,1781618500000,-500.0,8.204e-05,2]
[425218855,1781618500000,-321.55408488,8.204e-05,2]
[425218857,1781618500000,-500.0,8.204e-05,2]
[425218864,1781618500000,-150.0,8.206e-05,2]
[425218865,1781618500000,-2583.33645104,8.207e-05,2]
[425218863,1781618500000,-182.65583347,8.206e-05,2]
[425218856,1781618500000,-500.0,8.204e-05,2]
[425218861,1781618500000,-627.08092427,8.206e-05,2]
[425218858,1781618500000,-250.0,8.204e-05,2]
[425218860,1781618500000,-235.37270634,8.205e-05,2]
[425218859,1781618500000,-150.0,8.204e-05,2]
[425218866,1781618501000,-10000.0,8.207e-05,2]
[425218870,1781618503000,-172.47323051,8.207e-05,2]
[425218873,1781618503000,-500.0,8.219e-05,2]
[425218872,1781618503000,-160.0,8.215e-05,2]
[425218871,1781618503000,-216.13448155,8.215e-05,2]
[425218874,1781618503000,-500.0,8.219e-05,2]
[425218878,1781618503000,-159.30489633,8.247e-05,2]
[425218879,1781618503000,-187.3,8.308e-05,2]
[425218876,1781618503000,-364.64422264,8.219e-05,2]
[425218877,1781618503000,-300.0,8.247e-05,2]
[425218880,1781618503000,-250.0,9.024e-05,2]
[425218881,1781618503000,-255.0,9.024e-05,2]
[425218883,1781618503000,-187.3,9.231e-05,2]
[425218884,1781618503000,-370.29452838,9.478e-05,2]
[425218885,1781618503000,-1142.62506527,9.729e-05,2]
[425218886,1781618503000,-500.0,9.781e-05,2]
[425218887,1781618503000,-3934.92357532,9.879e-05,2]
[425218875,1781618503000,-500.0,8.219e-05,2]
[425218882,1781618503000,-300.0,9.026e-05,2]
[425218890,1781618504000,-433.0,9.926e-05,2]
[425218891,1781618504000,-155.27158541,0.0001,2]
[425218889,1781618504000,-500.39642468,9.879e-05,2]
[425218893,1781618527000,152.92,0.00028973,120]
[425218895,1781618551000,1525.14518373,9.909e-05,2]
[425218897,1781618561000,1587.4736951,8.647e-05,2]
[425218899,1781618596000,305.0,9.744e-05,2]
[425218900,1781618630000,3266.7078,8.927e-05,2]
[425218901,1781618643000,446.27,9.426e-05,2]
[425218905,1781618695000,500.0,0.00030137,120]
[425218907,1781618738000,858.81,9.395e-05,2]
[425218906,1781618738000,248.9439793,8.647e-05,2]
[425218908,1781618775000,672.98133178,8.647e-05,2]
[425218919,1781619031000,-137.95157672,8.647e-05,2]
[425218953,1781619032000,-500.0,9.99e-05,2]
[425218952,1781619032000,-250.0,9.947e-05,2]
[425218951,1781619032000,-150.0,9.947e-05,2]
[425218948,1781619032000,-150.0,9.947e-05,2]
[425218954,1781619032000,-500.0,9.99e-05,2]
[425218949,1781619032000,-150.0,9.947e-05,2]
[425218955,1781619032000,-500.0,9.99e-05,2]
[425218946,1781619032000,-500.0,9.947e-05,2]
[425218950,1781619032000,-150.0,9.947e-05,2]
[425218956,1781619032000,-234.68981492,9.99e-05,2]
[425218985,1781619032000,-222.85351328,9.99e-05,2]
[425218961,1781619032000,-500.0,9.99e-05,2]
[425218959,1781619032000,-265.31018508,9.99e-05,2]
[425218963,1781619032000,-506.14099564,9.99e-05,2]
[425218967,1781619032000,-129.68369602,9.99e-05,2]
[425218981,1781619032000,-456.83195002,9.99e-05,2]
[425218947,1781619032000,-489.61962631,9.947e-05,2]
[425218988,1781619032000,-155.27158541,0.0001,2]
[425218971,1781619032000,-302.11326578,9.99e-05,2]
[425218983,1781619032000,-43.16804998,9.99e-05,2]
[425218965,1781619032000,-370.31630398,9.99e-05,2]
[425218944,1781619032000,-500.0,9.947e-05,2]
[425218923,1781619032000,-1225.16098,8.647e-05,2]
[425218942,1781619032000,-150.0,9.947e-05,2]
[425218922,1781619032000,-1300.0,8.647e-05,2]
[425218921,1781619032000,-2172.85033502,8.647e-05,2]
[425218924,1781619032000,-640.05606698,8.647e-05,2]
[425218925,1781619032000,-250.0,8.821e-05,2]
[425218926,1781619032000,-150.0,8.995e-05,2]
[425218927,1781619032000,-800.41,9.343e-05,2]
[425218928,1781619032000,-250.0,9.398e-05,2]
[425218929,1781619032000,-250.0,9.512e-05,2]
[425218931,1781619032000,-551.82655532,9.908e-05,2]
[425218932,1781619032000,-464.9369005,9.908e-05,2]
[425218930,1781619032000,-500.0,9.863e-05,2]
[425218933,1781619032000,-150.0,9.947e-05,2]
[425218935,1781619032000,-150.0,9.947e-05,2]
[425218934,1781619032000,-150.0,9.947e-05,2]
[425218936,1781619032000,-250.0,9.947e-05,2]
[425218938,1781619032000,-150.0,9.947e-05,2]
[425218943,1781619032000,-150.8693151,9.947e-05,2]
[425218939,1781619032000,-150.0,9.947e-05,2]
[425218941,1781619032000,-150.38813088,9.947e-05,2]
[425218937,1781619032000,-150.0,9.947e-05,2]
[425218940,1781619032000,-250.0,9.947e-05,2]
[425218945,1781619032000,-500.0,9.947e-05,2]
[425218969,1781619032000,-500.0,9.99e-05,2]
[425219010,1781619032000,-146.25320484,0.00010008,2]
[425218974,1781619032000,-197.88673422,9.99e-05,2]
[425219034,1781619032000,-151.0,0.00010008,2]
[425219035,1781619032000,-151.0,0.00010008,2]
[425219041,1781619032000,-150.0,0.00010008,2]
[425219037,1781619032000,-153.0,0.00010008,2]
[425219040,1781619032000,-180.0,0.00010008,2]
[425219036,1781619032000,-151.0,0.00010008,2]
[425219042,1781619032000,-150.0,0.00010009,2]
[425219039,1781619032000,-152.0,0.00010008,2]
[425219038,1781619032000,-152.0,0.00010008,2]
[425219044,1781619032000,-290.52847996,0.00010009,2]
[425219049,1781619032000,-151.0,0.00010009,2]
[425219048,1781619032000,-151.0,0.00010009,2]
[425219053,1781619032000,-150.0,0.00010009,2]
[425219047,1781619032000,-150.0,0.00010009,2]
[425219046,1781619032000,-150.0,0.00010009,2]
[425219045,1781619032000,-153.0,0.00010009,2]
[425219051,1781619032000,-151.0,0.00010009,2]
[425219054,1781619032000,-175.129,0.00010009,2]
[425219050,1781619032000,-290.74804239,0.00010009,2]
[425219052,1781619032000,-150.0,0.00010009,2]
[425218976,1781619032000,-500.0,9.99e-05,2]
[425219032,1781619032000,-5.14983648,0.00010008,2]
[425219043,1781619032000,-151.0,0.00010009,2]
[425219013,1781619032000,-6.74679516,0.00010008,2]
[425219031,1781619032000,-150.0,0.00010008,2]
[425219033,1781619032000,-144.85016352,0.00010008,2]
[425218990,1781619032000,-163.0926522,0.0001,2]
[425218992,1781619032000,-150.0,0.00010007,2]
[425218996,1781619032000,-392.76497052,0.00010007,2]
[425219000,1781619032000,-151.0,0.00010008,2]
[425218998,1781619032000,-150.0,0.00010008,2]
[425218994,1781619032000,-254.07437224,0.00010007,2]
[425219004,1781619032000,-90.92972993,0.00010008,2]
[425219008,1781619032000,-151.0,0.00010008,2]
[425219006,1781619032000,-150.0,0.00010008,2]
[425219002,1781619032000,-60.07027007,0.00010008,2]
[425218978,1781619032000,-421.0174697,9.99e-05,2]
[425219015,1781619032000,-153.0,0.00010008,2]
[425219029,1781619032000,-50.63849716,0.00010008,2]
[425219017,1781619032000,-151.0,0.00010008,2]
[425219023,1781619032000,-10.01302978,0.00010008,2]
[425219021,1781619032000,-151.0,0.00010008,2]
[425219019,1781619032000,-152.0,0.00010008,2]
[425219025,1781619032000,-140.98697022,0.00010008,2]
[425219030,1781619032000,-150.0,0.00010008,2]
[425219027,1781619032000,-150.0,0.00010008,2]
[425219028,1781619032000,-100.36150284,0.00010008,2]
[425219055,1781619033000,-150.397,0.00010009,2]
[425219057,1781619033000,-248.399,0.00010009,2]
[425219059,1781619033000,-762.88123545,0.00010009,2]
[425219056,1781619033000,-150.184,0.00010009,2]
[425219058,1781619033000,-150.0,0.00010009,2]
[425219069,1781619038000,-162.99475897,0.00010026,2]
[425219061,1781619038000,-2795.11876455,0.00010009,2]
[425219063,1781619038000,-188.33555263,0.00010021,2]
[425219064,1781619038000,-27.79892892,0.00010021,2]
[425219062,1781619038000,-160.0,0.00010021,2]
[425219066,1781619038000,-89.32506671,0.00010026,2]
[425219065,1781619038000,-438.95664699,0.00010026,2]
[425219070,1781619038000,-500.0,0.00010026,2]
[425219071,1781619038000,-495.30577,0.00010027,2]
[425219073,1781619038000,-674.54660604,0.0001007,2]
[425219075,1781619038000,-1445.66008047,0.0001007,2]
[425219072,1781619038000,-280.80423,0.00010027,2]
[425219067,1781619038000,-410.67493329,0.00010026,2]
[425219074,1781619038000,-719.09646631,0.0001007,2]
[425219068,1781619038000,-142.25619687,0.00010026,2]
[425219081,1781619040000,-310.0,0.0001013,2]
[425219080,1781619040000,-489.88507537,0.0001013,2]
[425219079,1781619040000,-1636.016704,0.0001007,2]
[425219078,1781619040000,-10098.50410632,0.0001007,2]
[425219077,1781619040000,-2762.94568636,0.0001007,2]
[425219138,1781619043000,-216.87838045,0.0001013,2]
[425219139,1781619043000,-187.3,0.00010154,2]
[425219141,1781619043000,-394.56,0.00010184,2]
[425219140,1781619043000,-66.24206403,0.00010184,2]
[425219156,1781619045000,-281.08231387,0.00010184,2]
[425219157,1781619045000,-634.41767562,0.00010184,2]
[425219168,1781619046000,-216.31368455,0.00010226,2]
[425219158,1781619046000,-963.42594648,0.00010184,2]
[425219160,1781619046000,-1275.0,0.00010184,2]
[425219161,1781619046000,-383.0,0.00010184,2]
[425219163,1781619046000,-185.13,0.00010218,2]
[425219159,1781619046000,-155.558,0.00010184,2]
[425219164,1781619046000,-151.0,0.00010221,2]
[425219162,1781619046000,-1228.0,0.00010184,2]
[425219165,1781619046000,-151.0,0.00010221,2]
[425219166,1781619046000,-150.0,0.00010226,2]
[425219169,1781619046000,-345.59835209,0.00010226,2]
[425219167,1781619046000,-25.07996031,0.00010226,2]
[425219170,1781619046000,-154.40164791,0.00010226,2]
[425219177,1781619046000,-500.0,0.00010226,2]
[425219183,1781619046000,-257.20343232,0.00010226,2]
[425219181,1781619046000,-500.0,0.00010226,2]
[425219180,1781619046000,-500.0,0.00010226,2]
[425219179,1781619046000,-500.0,0.00010226,2]
[425219175,1781619046000,-261.28164791,0.00010226,2]
[425219182,1781619046000,-500.0,0.00010226,2]
[425219171,1781619046000,-500.0,0.00010226,2]
[425219178,1781619046000,-500.0,0.00010226,2]
[425219172,1781619046000,-500.0,0.00010226,2]
[425219173,1781619046000,-500.0,0.00010226,2]
[425219174,1781619046000,-238.71835209,0.00010226,2]
[425219176,1781619046000,-500.0,0.00010226,2]
[425219185,1781619396000,152.0,0.00029998,120]
[425219186,1781619661000,152.0,0.00029977,120]
[425219187,1781619662000,152.0,0.00029998,120]
[425219189,1781619663000,152.0,0.00029998,120]
[425219188,1781619663000,152.0,0.00029998,120]
[425219190,1781619664000,152.0,0.00030019,120]
[425219191,1781619665000,152.0,0.00030019,120]
[425219193,1781619956000,152.0,0.00029977,120]
[425219243,1781620232000,-200.0,9.067e-05,7]
[425219239,1781620232000,-200.0,9.067e-05,2]
[425219241,1781620232000,-200.0,9.067e-05,2]
[425219237,1781620232000,-284.13,9.067e-05,7]
[425219246,1781620232000,-200.0,9.067e-05,7]
[425219253,1781620232000,-284.13,9.07e-05,7]
[425219256,1781620232000,-284.13,9.07e-05,7]
[425219250,1781620232000,-284.13,9.07e-05,7]
[425219231,1781620232000,-284.13,9.067e-05,7]
[425219277,1781620232000,-166.81,9.087e-05,7]
[425219259,1781620232000,-284.13,9.07e-05,7]
[425219270,1781620232000,-166.81,9.076e-05,7]
[425219271,1781620232000,-166.81,9.076e-05,7]